fUSD/lending_fUSD_20240409
["ID","MTS","AMOUNT","RATE_DAILY","PERIOD"]
[322012001,1712686243554,-4199.15,0.00019178,2]
[322012002,1712686243564,-407.44,0.00019178,2]
[322012003,1712686243573,-1937.54,0.00019178,2]
[322012004,1712686243582,-692.91,0.00019178,2]
[322012005,1712686243591,-1955.83,0.00019178,2]
[322012006,1712686243601,-500.0,0.00019178,2]
[322012007,1712686243611,-500.0,0.00019178,2]
[322012008,1712686243620,-500.0,0.00019178,2]
[322012009,1712686243630,-500.0,0.00019178,2]
[322012010,1712686243639,-500.0,0.00019178,2]
[322012011,1712686243648,-8468.04,0.00019178,2]
[322012012,1712686243658,-690.84,0.00019178,2]
[322012013,1712686243667,-942.06,0.00019178,2]
[322012014,1712686243676,-851.69,0.00019178,2]
[322012015,1712686243686,-982.4,0.00019178,2]
[322012016,1712686243695,-500.0,0.00019178,2]
[322012017,1712686243704,-500.0,0.00019178,2]
[322012018,1712686243714,-500.0,0.00019178,2]
[322012019,1712686243723,-500.0,0.00019178,2]
[322012020,1712686243732,-500.0,0.00019178,2]
[322012021,1712686243741,-621.16,0.00019178,2]
[322012022,1712686243750,-1672.92,0.00019178,2]
[322012023,1712686243759,-545.07,0.00019178,2]
[322012024,1712686243768,-500.0,0.00019178,2]
[322012025,1712686243778,-758.3,0.00019178,2]
[322012026,1712686243788,-2398.18,0.00019178,2]
[322012027,1712686243797,-500.0,0.00019178,2]
[322012028,1712686243806,-500.0,0.00019178,2]
[322012029,1712686243815,-500.0,0.00019178,2]
[322012030,1712686243824,-500.0,0.00019178,2]
[322012031,1712686243834,-2008.9,0.00019178,2]
[322012032,1712686243843,-1088.74,0.00019178,2]
[322012033,1712686243852,-1484.91,0.00019178,2]
[322012034,1712686243864,-1232.55,0.00019178,2]
[322012035,1712686243873,-500.0,0.00019178,2]
[322012036,1712686243882,-500.0,0.00019178,2]
[322012037,1712686243891,-500.0,0.00019178,2]
[322012038,1712686243900,-500.0,0.00019178,2]
[322012039,1712686243909,-500.0,0.00019178,2]
[322012040,1712686243918,-2076.42,0.00019178,2]
[322012041,1712686243927,-1117.58,0.00019178,2]
[322012042,1712686243936,-500.0,0.00019178,2]
[322012043,1712686243945,-500.0,0.00019178,2]
[322012044,1712686243954,-731.83,0.00019178,2]
[322012045,1712686243963,-770.95,0.00019178,2]
[322012046,1712686243973,-1091.7,0.00019178,2]
[322012047,1712686243982,-500.0,0.00019178,2]
[322012048,1712686243991,-500.0,0.00019178,2]
[322012049,1712686244000,-778.97,0.00019178,2]
[322012050,1712686244009,-1203.97,0.00019178,2]
[322012051,1712686244018,-500.0,0.00019178,2]
[322012052,1712686244028,-500.0,0.00019178,2]
[322012053,1712686244037,-500.0,0.00019178,2]
[322012054,1712686244045,-705.57,0.00019178,2]
[322012055,1712686244054,-500.0,0.00019178,2]
[322012056,1712686244063,-578.67,0.00019178,2]
[322012057,1712686244073,-500.0,0.00019178,2]
[322012058,1712686244082,-500.0,0.00019178,2]
[322012059,1712686244092,-500.0,0.00019178,2]
[322012060,1712686244101,-435.59213883,0.00019178,2]
[322012061,1712686244112,-632.2,0.00019178,2]
[322012062,1712686244122,-500.0,0.00019178,2]
[322012063,1712686244131,-200.0,0.00019178,2]
[322012064,1712686244141,-1500.0,0.00019178,2]
[322012065,1712686244150,-153.39,0.0001918,2]
[322012066,1712686244158,-153.39,0.0001918,2]
[322012067,1712686244168,-153.39,0.0001918,2]
[322012068,1712686244177,-153.39,0.0001918,2]
[322012069,1712686244186,-153.39,0.0001918,2]
[322012070,1712686244195,-153.39,0.0001918,2]
[322012071,1712686244204,-153.39,0.0001918,2]
[322012072,1712686244214,-876.69,0.000192,2]
[322012073,1712686244224,-1488.08,0.000192,2]
[322012074,1712686244235,-164.13,0.00019269,2]
[322012075,1712686244245,-2749.60908708,0.00019319,2]
[322012076,1712686244254,-315.1931899,0.0001932,2]
[322012077,1712686244263,-200.72093415,0.00019397,2]
[322012078,1712686244274,-167.21,0.00019399,2]
[322012079,1712686244282,-11817.50743022,0.00019406,2]
[322012080,1712686244291,-1633.2886154,0.00019406,2]
[322012081,1712686244301,-196.27760885,0.00019442,2]
[322012082,1712686244311,-7470.47823128,0.0001945,2]
[322012083,1712686244321,-1153.7547148,0.0001945,2]
[322012084,1712686244329,-298.41877202,0.0001945,2]
[322012085,1712686244338,-3578.73036371,0.0001945,2]
[322012086,1712686244347,-235.01017711,0.0001945,2]
[322012087,1712686244356,-371.52548277,0.0001945,2]
[322012088,1712686244366,-351.70999999,0.00019451,2]
[322012089,1712686244375,-500.0,0.00019452,2]
[322012090,1712686244384,-500.0,0.00019452,2]
[322012091,1712686244393,-500.0,0.00019452,2]
[322012092,1712686244402,-583.42177226,0.00019452,2]
[322012093,1712686244411,-500.0,0.00019452,2]
[322012094,1712686244420,-500.0,0.00019452,2]
[322012095,1712686244430,-157.66195934,0.00019452,2]
[322012096,1712686244439,-500.0,0.00019452,2]
[322012097,1712686244449,-500.0,0.00019452,2]
[322012098,1712686244458,-500.0,0.00019452,2]
[322012099,1712686244468,-170.03,0.00019452,2]
[322012100,1712686244477,-187.7,0.00019452,2]
[322012101,1712686244486,-500.0,0.00019452,2]
[322012102,1712686244495,-530.53353637,0.00019452,2]
[322012103,1712686244504,-500.0,0.00019452,2]
[322012104,1712686244514,-500.0,0.00019452,2]
[322012105,1712686244523,-500.0,0.00019452,2]
[322012106,1712686244532,-500.0,0.00019452,2]
[322012107,1712686244541,-500.0,0.00019452,2]
[322012108,1712686244550,-166.81,0.00019452,2]
[322012109,1712686244559,-231.26189313,0.00019452,2]
[322012110,1712686244569,-500.0,0.00019452,2]
[322012111,1712686244578,-500.0,0.00019452,2]
[322012112,1712686244588,-500.0,0.00019452,2]
[322012113,1712686244597,-500.0,0.00019452,2]
[322012114,1712686244606,-564.6,0.00019452,2]
[322012115,1712686244616,-500.0,0.00019452,2]
[322012116,1712686244625,-500.0,0.00019452,2]
[322012117,1712686244634,-500.0,0.00019452,2]
[322012118,1712686244643,-500.0,0.00019452,2]
[322012119,1712686244653,-500.0,0.00019452,2]
[322012120,1712686244662,-500.0,0.00019452,2]
[322012121,1712686244671,-500.0,0.00019452,2]
[322012122,1712686244680,-500.0,0.00019452,2]
[322012123,1712686244689,-513.1,0.00019452,2]
[322012124,1712686244698,-475.2,0.00019452,2]
[322012125,1712686244707,-500.0,0.00019452,2]
[322012126,1712686244716,-500.0,0.00019452,2]
[322012127,1712686244725,-500.0,0.00019452,2]
[322012128,1712686244734,-500.0,0.00019452,2]
[322012129,1712686244743,-500.0,0.00019452,2]
[322012130,1712686244753,-500.0,0.00019452,2]
[322012131,1712686244761,-656.13,0.00019452,2]
[322012132,1712686244771,-500.0,0.00019452,2]
[322012133,1712686244780,-500.0,0.00019452,2]
[322012134,1712686244790,-500.0,0.00019452,2]
[322012135,1712686244800,-500.0,0.00019452,2]
[322012136,1712686244809,-500.0,0.00019452,2]
[322012137,1712686244818,-500.0,0.00019452,2]
[322012138,1712686244827,-500.0,0.00019452,2]
[322012139,1712686244837,-500.0,0.00019452,2]
[322012140,1712686244847,-500.0,0.00019452,2]
[322012141,1712686244856,-730.36,0.00019452,2]
[322012142,1712686244866,-365.55335946,0.00019452,2]
[322012143,1712686244875,-542.40270908,0.00019452,2]
[322012144,1712686244884,-500.0,0.00019452,2]
[322012145,1712686244893,-500.0,0.00019452,2]
[322012146,1712686244902,-500.0,0.00019452,2]
[322012147,1712686244912,-500.0,0.00019452,2]
[322012148,1712686244921,-500.0,0.00019452,2]
[322012149,1712686244930,-500.0,0.00019452,2]
[322012150,1712686244939,-500.0,0.00019452,2]
[322012151,1712686244948,-500.0,0.00019452,2]
[322012152,1712686244957,-515.18,0.00019452,2]
[322012153,1712686244966,-601.31,0.00019452,2]
[322012154,1712686244975,-500.0,0.00019452,2]
[322012155,1712686244984,-500.0,0.00019452,2]
[322012156,1712686244993,-500.0,0.00019452,2]
[322012157,1712686245002,-500.0,0.00019452,2]
[322012158,1712686245011,-500.0,0.00019452,2]
[322012159,1712686245021,-500.0,0.00019452,2]
[322012160,1712686245030,-347.6,0.00019452,2]
[322012161,1712686245039,-500.0,0.00019452,2]
[322012162,1712686245048,-500.0,0.00019452,2]
[322012163,1712686245057,-500.0,0.00019452,2]
[322012164,1712686245066,-500.0,0.00019452,2]
[322012165,1712686245075,-563.81,0.00019452,2]
[322012166,1712686245084,-500.0,0.00019452,2]
[322012167,1712686245093,-500.0,0.00019452,2]
[322012168,1712686245102,-500.0,0.00019452,2]
[322012169,1712686245113,-500.0,0.00019452,2]
[322012170,1712686245123,-500.0,0.00019452,2]
[322012171,1712686245133,-500.0,0.00019452,2]
[322012172,1712686245142,-460.47789265,0.00019452,2]
[322012173,1712686245151,-500.0,0.00019452,2]
[322012174,1712686245161,-508.10362321,0.00019452,2]
[322012175,1712686245170,-276.07,0.00019452,2]
[322012176,1712686245179,-500.0,0.00019452,2]
[322012177,1712686245189,-500.0,0.00019452,2]
[322012178,1712686245198,-500.0,0.00019452,2]
[322012179,1712686245207,-189.64,0.00019452,2]
[322012180,1712686245217,-500.0,0.00019452,2]
[322012181,1712686245226,-646.53,0.00019452,2]
[322012182,1712686245236,-500.0,0.00019452,2]
[322012183,1712686245246,-500.0,0.00019452,2]
[322012184,1712686245255,-500.0,0.00019452,2]
[322012185,1712686245265,-505.77,0.00019452,2]
[322012186,1712686245274,-500.0,0.00019452,2]
[322012187,1712686245283,-500.0,0.00019452,2]
[322012188,1712686245292,-500.0,0.00019452,2]
[322012189,1712686245302,-500.0,0.00019452,2]
[322012190,1712686245312,-500.0,0.00019452,2]
[322012191,1712686245322,-500.0,0.00019452,2]
[322012192,1712686245331,-806.48,0.00019452,2]
[322012193,1712686245340,-500.0,0.00019452,2]
[322012194,1712686245349,-500.0,0.00019452,2]
[322012195,1712686245359,-500.0,0.00019452,2]
[322012196,1712686245369,-448.17,0.00019452,2]
[322012197,1712686245378,-500.0,0.00019452,2]
[322012198,1712686245388,-500.0,0.00019452,2]
[322012199,1712686245398,-500.0,0.00019452,2]
[322012200,1712686245406,-500.0,0.00019452,2]
[322012201,1712686245416,-500.0,0.00019452,2]
[322012202,1712686245425,-500.0,0.00019452,2]
[322012203,1712686245435,-500.0,0.00019452,2]
[322012204,1712686245444,-500.0,0.00019452,2]
[322012205,1712686245453,-500.0,0.00019452,2]
[322012206,1712686245463,-500.0,0.00019452,2]
[322012207,1712686245472,-518.39,0.00019452,2]
[322012208,1712686245481,-500.0,0.00019452,2]
[322012209,1712686245690,-500.0,0.00019452,2]
[322012210,1712686245700,-500.0,0.00019452,2]
[322012211,1712686245710,-500.0,0.00019452,2]
[322012212,1712686245720,-500.0,0.00019452,2]
[322012213,1712686245730,-500.0,0.00019452,2]
[322012214,1712686245740,-527.43,0.00019452,2]
[322012215,1712686245750,-500.0,0.00019452,2]
[322012216,1712686245759,-150.0,0.00019452,2]
[322012217,1712686245769,-542.36,0.00019452,2]
[322012218,1712686245778,-500.0,0.00019452,2]
[322012219,1712686245788,-500.0,0.00019452,2]
[322012220,1712686245798,-500.0,0.00019452,2]
[322012221,1712686245807,-500.0,0.00019452,2]
[322012222,1712686245817,-500.0,0.00019452,2]
[322012223,1712686245827,-500.0,0.00019452,2]
[322012224,1712686245836,-500.0,0.00019452,2]
[322012225,1712686245846,-500.0,0.00019452,2]
[322012226,1712686245855,-533.46492979,0.00019452,2]
[322012227,1712686245866,-500.0,0.00019452,2]
[322012228,1712686245875,-500.0,0.00019452,2]
[322012229,1712686245885,-500.0,0.00019452,2]
[322012230,1712686245895,-500.0,0.00019452,2]
[322012231,1712686245905,-500.0,0.00019452,2]
[322012232,1712686245914,-500.0,0.00019452,2]
[322012233,1712686245924,-500.0,0.00019452,2]
[322012235,1712686245934,-500.0,0.00019452,2]
[322012237,1712686245944,-500.0,0.00019452,2]
[322012238,1712686245953,-500.0,0.00019452,2]
[322012239,1712686245963,-836.19,0.00019452,2]
[322012240,1712686245973,-1060.74,0.00019452,2]
[322012241,1712686245982,-500.0,0.00019452,2]
[322012242,1712686245991,-500.0,0.00019452,2]
[322012243,1712686246001,-500.0,0.00019452,2]
[322012244,1712686246010,-500.0,0.00019452,2]
[322012245,1712686246020,-500.0,0.00019452,2]
[322012246,1712686246029,-500.0,0.00019452,2]
[322012247,1712686246039,-1223.61,0.00019452,2]
[322012248,1712686246049,-500.0,0.00019452,2]
[322012249,1712686246058,-500.0,0.00019452,2]
[322012250,1712686246068,-500.0,0.00019452,2]
[322012251,1712686246079,-500.0,0.00019452,2]
[322012252,1712686246089,-660.46,0.00019452,2]
[322012253,1712686246099,-243.79,0.00019452,2]
[322012254,1712686246110,-500.0,0.00019452,2]
[322012255,1712686246120,-500.0,0.00019452,2]
[322012256,1712686246130,-556.56,0.00019452,2]
[322012257,1712686246139,-588.59,0.00019452,2]
[322012258,1712686246149,-1993.49,0.00019452,2]
[322012259,1712686246159,-792.61,0.00019452,2]
[322012260,1712686246168,-500.0,0.00019452,2]
[322012261,1712686246177,-697.64,0.00019452,2]
[322012262,1712686246187,-500.0,0.00019452,2]
[322012263,1712686246197,-594.59,0.00019452,2]
[322012264,1712686246207,-9401.57,0.00019452,2]
[322012265,1712686246216,-500.0,0.00019452,2]
[322012266,1712686246226,-500.0,0.00019452,2]
[322012267,1712686246238,-1246.94,0.00019452,2]
[322012268,1712686246248,-500.0,0.00019452,2]
[322012269,1712686246257,-500.0,0.00019452,2]
[322012270,1712686246267,-500.0,0.00019452,2]
[322012271,1712686246277,-1197.2,0.00019452,2]
[322012272,1712686246287,-1045.56,0.00019452,2]
[322012273,1712686246296,-869.28,0.00019452,2]
[322012274,1712686246307,-500.0,0.00019452,2]
[322012275,1712686246317,-500.0,0.00019452,2]
[322012276,1712686246326,-500.0,0.00019452,2]
[322012277,1712686246336,-2053.99,0.00019452,2]
[322012278,1712686246346,-820.51,0.00019452,2]
[322012279,1712686246355,-500.0,0.00019452,2]
[322012280,1712686246365,-475.89535884,0.00019452,2]
[322012281,1712686246375,-500.0,0.00019452,2]
[322012282,1712686246385,-735.71,0.00019452,2]
[322012283,1712686246395,-500.0,0.00019452,2]
[322012284,1712686246405,-544.79,0.00019452,2]
[322012285,1712686246414,-500.0,0.00019452,2]
[322012286,1712686246424,-1425.24,0.00019452,2]
[322012287,1712686246433,-500.0,0.00019452,2]
[322012288,1712686246443,-569.31,0.00019452,2]
[322012289,1712686246453,-890.66,0.00019452,2]
[322012290,1712686246462,-530.18,0.00019452,2]
[322012291,1712686246472,-2978.08,0.00019452,2]
[322012292,1712686246482,-500.0,0.00019452,2]
[322012293,1712686246492,-919.64,0.00019452,2]
[322012294,1712686246502,-12759.84,0.00019452,2]
[322012295,1712686246511,-500.0,0.00019452,2]
[322012296,1712686246521,-1229.32,0.00019452,2]
[322012297,1712686246531,-1271.59,0.00019452,2]
[322012298,1712686246540,-500.0,0.00019452,2]
[322012299,1712686246549,-500.0,0.00019452,2]
[322012300,1712686246558,-500.0,0.00019452,2]
[322012301,1712686246568,-500.0,0.00019452,2]
[322012302,1712686246577,-500.0,0.00019452,2]
[322012303,1712686246587,-3301.44,0.00019452,2]
[322012304,1712686246596,-500.0,0.00019452,2]
[322012305,1712686246606,-936.64,0.00019452,2]
[322012306,1712686246616,-500.0,0.00019452,2]
[322012307,1712686246625,-1058.76,0.00019452,2]
[322012308,1712686246635,-500.0,0.00019452,2]
[322012309,1712686246644,-1994.87,0.00019452,2]
[322012310,1712686246654,-976.55,0.00019452,2]
[322012311,1712686246663,-500.0,0.00019452,2]
[322012312,1712686246672,-500.0,0.00019452,2]
[322012313,1712686246682,-1782.83,0.00019452,2]
[322012314,1712686246691,-500.0,0.00019452,2]
[322012315,1712686246700,-500.0,0.00019452,2]
[322012316,1712686246709,-3187.26,0.00019452,2]
[322012317,1712686246718,-1476.58,0.00019452,2]
[322012318,1712686246728,-500.0,0.00019452,2]
[322012319,1712686246737,-1878.4,0.00019452,2]
[322012320,1712686246746,-500.0,0.00019452,2]
[322012321,1712686246755,-503.17,0.00019452,2]
[322012322,1712686246765,-500.0,0.00019452,2]
[322012323,1712686246774,-1695.71,0.00019452,2]
[322012324,1712686246783,-558.41,0.00019452,2]
[322012325,1712686246792,-737.11,0.00019452,2]
[322012326,1712686246802,-768.45,0.00019452,2]
[322012327,1712686246811,-500.0,0.00019452,2]
[322012328,1712686246821,-500.0,0.00019452,2]
[322012329,1712686246830,-500.0,0.00019452,2]
[322012330,1712686246839,-576.39,0.00019452,2]
[322012331,1712686246849,-500.0,0.00019452,2]
[322012332,1712686246858,-547.66,0.00019452,2]
[322012333,1712686246868,-500.0,0.00019452,2]
[322012334,1712686246877,-4475.64,0.00019452,2]
[322012335,1712686246886,-500.0,0.00019452,2]
[322012336,1712686246896,-629.85,0.00019452,2]
[322012337,1712686246905,-883.67,0.00019452,2]
[322012338,1712686246915,-613.21,0.00019452,2]
[322012339,1712686246924,-775.13,0.00019452,2]
[322012340,1712686246933,-1310.87,0.00019452,2]
[322012341,1712686246942,-500.0,0.00019452,2]
[322012342,1712686246951,-500.0,0.00019452,2]
[322012343,1712686246961,-748.54,0.00019452,2]
[322012344,1712686246970,-500.0,0.00019452,2]
[322012345,1712686246980,-500.0,0.00019452,2]
[322012346,1712686246989,-708.83,0.00019452,2]
[322012347,1712686246998,-2877.73,0.00019452,2]
[322012348,1712686247008,-500.0,0.00019452,2]
[322012349,1712686247018,-883.57,0.00019452,2]
[322012350,1712686247027,-657.24,0.00019452,2]
[322012351,1712686247037,-689.82,0.00019452,2]
[322012352,1712686247046,-644.82,0.00019452,2]
[322012353,1712686247056,-1383.01,0.00019452,2]
[322012354,1712686247065,-500.0,0.00019452,2]
[322012355,1712686247074,-500.0,0.00019452,2]
[322012356,1712686247083,-570.84,0.00019452,2]
[322012357,1712686247093,-500.0,0.00019452,2]
[322012358,1712686247102,-500.0,0.00019452,2]
[322012359,1712686247113,-500.0,0.00019452,2]
[322012360,1712686247123,-794.73,0.00019452,2]
[322012361,1712686247132,-500.0,0.00019452,2]
[322012362,1712686247141,-658.52,0.00019452,2]
[322012363,1712686247150,-7001.59,0.00019452,2]
[322012364,1712686247160,-500.0,0.00019452,2]
[322012365,1712686247169,-650.96,0.00019452,2]
[322012366,1712686247178,-668.84,0.00019452,2]
[322012367,1712686247187,-816.57,0.00019452,2]
[322012368,1712686247196,-500.0,0.00019452,2]
[322012369,1712686247205,-635.18898956,0.00019452,2]
[322012370,1712686247215,-501.31,0.00019452,2]
[322012371,1712686247228,-500.0,0.00019452,2]
[322012372,1712686247237,-500.0,0.00019452,2]
[322012373,1712686247246,-500.0,0.00019452,2]
[322012374,1712686247255,-516.64334294,0.00019452,2]
[322012375,1712686247265,-519.12,0.00019452,2]
[322012376,1712686247274,-500.0,0.00019452,2]
[322012377,1712686247283,-500.0,0.00019452,2]
[322012378,1712686247293,-773.21,0.00019452,2]
[322012379,1712686247302,-1945.67,0.00019452,2]
[322012380,1712686247313,-538.98,0.00019452,2]
[322012381,1712686247322,-500.0,0.00019452,2]
[322012382,1712686247331,-795.19,0.00019452,2]
[322012383,1712686247340,-500.0,0.00019452,2]
[322012384,1712686247350,-500.0,0.00019452,2]
[322012385,1712686247361,-3633.26,0.00019452,2]
[322012386,1712686247370,-500.0,0.00019452,2]
[322012387,1712686247379,-1901.24,0.00019452,2]
[322012388,1712686247389,-500.0,0.00019452,2]
[322012389,1712686247397,-938.91,0.00019452,2]
[322012390,1712686247407,-500.0,0.00019452,2]
[322012391,1712686247416,-1155.62,0.00019452,2]
[322012392,1712686247425,-600.58,0.00019452,2]
[322012393,1712686247435,-500.0,0.00019452,2]
[322012394,1712686247444,-500.0,0.00019452,2]
[322012395,1712686247454,-1027.16,0.00019452,2]
[322012396,1712686247463,-500.0,0.00019452,2]
[322012397,1712686247472,-762.2,0.00019452,2]
[322012398,1712686247483,-568.8,0.00019452,2]
[322012399,1712686247493,-500.0,0.00019452,2]
[322012400,1712686247502,-809.1,0.00019452,2]
[322012401,1712686247512,-500.0,0.00019452,2]
[322012402,1712686247521,-500.0,0.00019452,2]
[322012403,1712686247531,-3121.22,0.00019452,2]
[322012404,1712686247540,-1134.94,0.00019452,2]
[322012405,1712686247550,-4199.15,0.00019452,2]
[322012406,1712686247560,-1937.54,0.00019452,2]
[322012407,1712686247570,-692.91,0.00019452,2]
[322012408,1712686247579,-1955.83,0.00019452,2]
[322012409,1712686247589,-500.0,0.00019452,2]
[322012410,1712686247598,-500.0,0.00019452,2]
[322012411,1712686247608,-500.0,0.00019452,2]
[322012412,1712686247618,-500.0,0.00019452,2]
[322012413,1712686247628,-500.0,0.00019452,2]
[322012414,1712686247637,-8468.04,0.00019452,2]
[322012415,1712686247647,-690.84,0.00019452,2]
[322012416,1712686247656,-942.06,0.00019452,2]
[322012417,1712686247666,-851.69,0.00019452,2]
[322012418,1712686247676,-982.4,0.00019452,2]
[322012419,1712686247685,-500.0,0.00019452,2]
[322012420,1712686247695,-500.0,0.00019452,2]
[322012421,1712686247704,-500.0,0.00019452,2]
[322012422,1712686247714,-621.16,0.00019452,2]
[322012423,1712686247724,-1672.92,0.00019452,2]
[322012424,1712686247733,-545.07,0.00019452,2]
[322012425,1712686247742,-758.3,0.00019452,2]
[322012426,1712686247751,-2398.18,0.00019452,2]
[322012427,1712686247760,-500.0,0.00019452,2]
[322012428,1712686247771,-500.0,0.00019452,2]
[322012429,1712686247781,-2008.9,0.00019452,2]
[322012430,1712686247790,-1088.74,0.00019452,2]
[322012431,1712686247799,-1232.55,0.00019452,2]
[322012432,1712686247809,-1484.91,0.00019452,2]
[322012433,1712686247819,-500.0,0.00019452,2]
[322012434,1712686247828,-500.0,0.00019452,2]
[322012435,1712686247838,-500.0,0.00019452,2]
[322012436,1712686247847,-167.41223361,0.00019452,2]
[322012437,1712686247857,-500.0,0.00019452,2]
[322012438,1712686247869,-2076.42,0.00019452,2]
[322012439,1712686247878,-1117.58,0.00019452,2]
[322012440,1712686247888,-500.0,0.00019452,2]
[322012441,1712686247898,-500.0,0.00019452,2]
[322012442,1712686247908,-731.83,0.00019452,2]
[322012443,1712686247918,-770.95,0.00019452,2]
[322012444,1712686247928,-1091.7,0.00019452,2]
[322012445,1712686247937,-500.0,0.00019452,2]
[322012446,1712686247947,-500.0,0.00019452,2]
[322012447,1712686247957,-778.97,0.00019452,2]
[322012448,1712686247966,-1203.97,0.00019452,2]
[322012449,1712686247976,-500.0,0.00019452,2]
[322012450,1712686247986,-500.0,0.00019452,2]
[322012451,1712686247995,-500.0,0.00019452,2]
[322012452,1712686248070,-705.57,0.00019452,2]
[322012453,1712686248080,-578.67,0.00019452,2]
[322012454,1712686248089,-500.0,0.00019452,2]
[322012455,1712686248099,-500.0,0.00019452,2]
[322012456,1712686248107,-2749.60908708,0.00019495,2]
[322012457,1712686248119,-593.98,0.00019596,2]
[322012458,1712686248129,-315.1931899,0.00019636,2]
[322012459,1712686248138,-2749.60908708,0.00019671,2]
[322012460,1712686248148,-11817.50743022,0.00019704,2]
[322012461,1712686248158,-1633.2886154,0.00019704,2]
[322012462,1712686248167,-519.15156437,0.00019726,2]
[322012463,1712686248177,-500.0,0.00019726,2]
[322012464,1712686248186,-500.0,0.00019726,2]
[322012465,1712686248195,-500.0,0.00019726,2]
[322012466,1712686248205,-500.0,0.00019726,2]
[322012467,1712686248214,-500.0,0.00019726,2]
[322012468,1712686248224,-500.0,0.00019726,2]
[322012469,1712686248236,-500.0,0.00019726,2]
[322012470,1712686248246,-500.0,0.00019726,2]
[322012471,1712686248255,-500.0,0.00019726,2]
[322012472,1712686248264,-500.0,0.00019726,2]
[322012473,1712686248274,-366.55519031,0.00019726,2]
[322012474,1712686248283,-500.0,0.00019726,2]
[322012475,1712686248292,-500.0,0.00019726,2]
[322012476,1712686248301,-500.0,0.00019726,2]
[322012477,1712686248311,-500.0,0.00019726,2]
[322012478,1712686248320,-564.6,0.00019726,2]
[322012479,1712686248329,-500.0,0.00019726,2]
[322012480,1712686248338,-500.0,0.00019726,2]
[322012481,1712686248347,-500.0,0.00019726,2]
[322012482,1712686248356,-199.13817216,0.00019726,2]
[322012483,1712686248368,-500.0,0.00019726,2]
[322012484,1712686248377,-500.0,0.00019726,2]
[322012485,1712686248387,-500.0,0.00019726,2]
[322012486,1712686248396,-513.1,0.00019726,2]
[322012487,1712686248405,-500.0,0.00019726,2]
[322012488,1712686248414,-500.0,0.00019726,2]
[322012489,1712686248423,-500.0,0.00019726,2]
[322012490,1712686248432,-500.0,0.00019726,2]
[322012491,1712686248442,-500.0,0.00019726,2]
[322012492,1712686248450,-500.0,0.00019726,2]
[322012493,1712686248459,-656.13,0.00019726,2]
[322012494,1712686248468,-500.0,0.00019726,2]
[322012495,1712686248477,-500.0,0.00019726,2]
[322012496,1712686248487,-500.0,0.00019726,2]
[322012497,1712686248500,-500.0,0.00019726,2]
[322012498,1712686248514,-500.0,0.00019726,2]
[322012499,1712686248524,-500.0,0.00019726,2]
[322012500,1712686248533,-500.0,0.00019726,2]
[322012501,1712686248543,-500.0,0.00019726,2]
[322012502,1712686248552,-500.0,0.00019726,2]